[Event "Titled Tuesday Blitz April 11 Early 2023"]
[White "Vysochin, Spartak"]
[Black "Rustemov, Alexander"]
[WhiteFideId "14103516"]
[BlackFideId "4119002"]
[WhiteElo "2367"]
[BlackElo "2884"]
[Result "1-0"]
[Round "08"]
[TimeControl "180+2"]
[Date "2023.04.11"]
[WhiteClock "0:00:17"]
[BlackClock "0:00:13"]

1. e4 {[%clk 0:02:55]}  e6 {[%clk 0:02:59]} 2. d4 {[%clk 0:02:54]}  d5 {[%clk 0:03:00]} 3. e5 {[%clk 0:02:55]}  c5 {[%clk 0:03:00]} 4. c3 {[%clk 0:02:55]}  Qb6 {[%clk 0:03:00]} 5. Nf3 {[%clk 0:02:55]}  Bd7 {[%clk 0:03:01]} 6. Be2 {[%clk 0:02:55]}  cxd4 {[%clk 0:02:59]} 7. cxd4 {[%clk 0:02:52]}  Bb5 {[%clk 0:03:00]} 8. Bxb5+ {[%clk 0:02:49]}  Qxb5 {[%clk 0:03:00]} 9. Nc3 {[%clk 0:02:49]}  Bb4 {[%clk 0:02:54]} 10. Bd2 {[%clk 0:02:38]}  Bxc3 {[%clk 0:02:54]} 11. bxc3 {[%clk 0:02:34]}  Nc6 {[%clk 0:02:49]} 12. Rb1 {[%clk 0:02:20]}  Qa6 {[%clk 0:02:49]} 13. Ng5 {[%clk 0:02:18]}  h6 {[%clk 0:02:40]} 14. Nh3 {[%clk 0:01:56]}  Nge7 {[%clk 0:02:36]} 15. Nf4 {[%clk 0:01:50]}  O-O {[%clk 0:02:34]} 16. h4 {[%clk 0:01:34]}  Ng6 {[%clk 0:02:27]} 17. Nh5 {[%clk 0:01:21]}  Nce7 {[%clk 0:02:13]} 18. Rh3 {[%clk 0:01:18]}  Qxa2 {[%clk 0:02:08]} 19. Ra1 {[%clk 0:01:05]}  Qc4 {[%clk 0:02:06]} 20. Bxh6 {[%clk 0:00:55]}  gxh6 {[%clk 0:02:04]} 21. Nf6+ {[%clk 0:00:53]}  Kg7 {[%clk 0:02:03]} 22. h5 {[%clk 0:00:47]}  Nf5 {[%clk 0:01:38]} 23. hxg6 {[%clk 0:00:43]}  fxg6 {[%clk 0:01:39]} 24. g4 {[%clk 0:00:41]}  Ne7 {[%clk 0:01:31]} 25. Qd2 {[%clk 0:00:41]}  g5 {[%clk 0:01:28]} 26. f4 {[%clk 0:00:37]}  gxf4 {[%clk 0:00:42]} 27. Qxf4 {[%clk 0:00:36]}  Ng8 {[%clk 0:00:39]} 28. g5 {[%clk 0:00:37]}  Kh8 {[%clk 0:00:35]} 29. g6 {[%clk 0:00:32]}  Kg7 {[%clk 0:00:32]} 30. Nh5+ {[%clk 0:00:29]}  Kh8 {[%clk 0:00:20]} 31. g7+ {[%clk 0:00:28]}  Kh7 {[%clk 0:00:21]} 32. gxf8=N+ {[%clk 0:00:20]}  Rxf8 {[%clk 0:00:16]} 33. Qxf8 {[%clk 0:00:18]}  Qc7 {[%clk 0:00:12]} 34. Nf6+ {[%clk 0:00:18]}  Kh8 {[%clk 0:00:13]} 35. Rxh6+ {[%clk 0:00:17]} 1-0


[Site "https://www.chess.com"]

[Event "Titled Tuesday Blitz April 11 Early 2023"]
[White "Arias, Juan Cruz"]
[Black "Aravindh, Chithambaram VR."]
[WhiteFideId "118540"]
[BlackFideId "5072786"]
[WhiteElo "2243"]
[BlackElo "2596"]
[Result "0-1"]
[Round "08"]
[TimeControl "180+2"]
[Date "2023.04.11"]
[WhiteClock "0:00:02"]
[BlackClock "0:00:55"]

1. d4 {[%clk 0:03:00]}  c5 {[%clk 0:02:56]} 2. e3 {[%clk 0:03:00]}  cxd4 {[%clk 0:02:56]} 3. exd4 {[%clk 0:03:01]}  d5 {[%clk 0:02:56]} 4. Nf3 {[%clk 0:03:02]}  Nf6 {[%clk 0:02:56]} 5. c3 {[%clk 0:03:02]}  g6 {[%clk 0:02:57]} 6. Bf4 {[%clk 0:02:58]}  Bg7 {[%clk 0:02:57]} 7. Nbd2 {[%clk 0:02:59]}  O-O {[%clk 0:02:58]} 8. Be2 {[%clk 0:02:59]}  Nc6 {[%clk 0:02:58]} 9. O-O {[%clk 0:03:00]}  Bg4 {[%clk 0:02:59]} 10. Re1 {[%clk 0:02:57]}  e6 {[%clk 0:02:58]} 11. h3 {[%clk 0:02:57]}  Bxf3 {[%clk 0:02:58]} 12. Nxf3 {[%clk 0:02:58]}  Ne8 {[%clk 0:02:58]} 13. Bd3 {[%clk 0:02:55]}  Nd6 {[%clk 0:02:59]} 14. Qd2 {[%clk 0:02:55]}  a6 {[%clk 0:02:56]} 15. Bh6 {[%clk 0:02:52]}  b5 {[%clk 0:02:56]} 16. h4 {[%clk 0:02:46]}  Rb8 {[%clk 0:02:55]} 17. h5 {[%clk 0:02:44]}  b4 {[%clk 0:02:54]} 18. hxg6 {[%clk 0:02:43]}  hxg6 {[%clk 0:02:55]} 19. Qf4 {[%clk 0:02:36]}  bxc3 {[%clk 0:02:51]} 20. bxc3 {[%clk 0:02:37]}  Bxh6 {[%clk 0:02:08]} 21. Qxh6 {[%clk 0:02:36]}  Qf6 {[%clk 0:02:09]} 22. Bxa6 {[%clk 0:02:25]}  Ne4 {[%clk 0:02:03]} 23. Re3 {[%clk 0:02:11]}  Ne7 {[%clk 0:02:00]} 24. g4 {[%clk 0:01:49]}  Rb2 {[%clk 0:01:53]} 25. Rf1 {[%clk 0:01:46]}  Ra8 {[%clk 0:01:41]} 26. Bd3 {[%clk 0:01:46]}  Raxa2 {[%clk 0:01:41]} 27. c4 {[%clk 0:00:21]}  Nxf2 {[%clk 0:01:35]} 28. Ng5 {[%clk 0:00:15]}  Qg7 {[%clk 0:01:07]} 29. Qxg7+ {[%clk 0:00:15]}  Kxg7 {[%clk 0:01:08]} 30. Rf3 {[%clk 0:00:15]}  Nxd3 {[%clk 0:01:03]} 31. Rxf7+ {[%clk 0:00:13]}  Kh6 {[%clk 0:01:03]} 32. Nf3 {[%clk 0:00:08]}  Rg2+ {[%clk 0:00:57]} 33. Kh1 {[%clk 0:00:08]}  Rxg4 {[%clk 0:00:56]} 34. Rxe7 {[%clk 0:00:06]}  Nf2+ {[%clk 0:00:55]} 35. Kh2 {[%clk 0:00:04]}  Ne4+ {[%clk 0:00:55]} 36. Kh3 {[%clk 0:00:04]}  Rg3+ {[%clk 0:00:54]} 37. Kh4 {[%clk 0:00:02]}  Rh2+ {[%clk 0:00:54]} 38. Nxh2 {[%clk 0:00:02]}  g5# {[%clk 0:00:55]} 0-1


[Site "https://www.chess.com"]

[Event "Titled Tuesday Blitz April 11 Early 2023"]
[White "Jain Kashish Manoj"]
[Black "Ashraf, Artin"]
[WhiteFideId "35081098"]
[BlackFideId "22514805"]
[WhiteElo "2191"]
[BlackElo "2188"]
[Result "0-1"]
[Round "08"]
[TimeControl "180+2"]
[Date "2023.04.11"]
[WhiteClock "0:00:08"]
[BlackClock "0:00:07"]

1. e4 {[%clk 0:03:00]}  c5 {[%clk 0:02:59]} 2. Nf3 {[%clk 0:03:01]}  d6 {[%clk 0:02:59]} 3. d4 {[%clk 0:03:01]}  cxd4 {[%clk 0:03:00]} 4. Nxd4 {[%clk 0:03:02]}  Nf6 {[%clk 0:03:01]} 5. Nc3 {[%clk 0:03:03]}  a6 {[%clk 0:03:02]} 6. Be3 {[%clk 0:03:04]}  e6 {[%clk 0:02:56]} 7. a3 {[%clk 0:03:03]}  b5 {[%clk 0:02:54]} 8. g4 {[%clk 0:03:02]}  Bb7 {[%clk 0:02:54]} 9. Bg2 {[%clk 0:03:03]}  Qc7 {[%clk 0:02:51]} 10. g5 {[%clk 0:02:58]}  Nfd7 {[%clk 0:02:50]} 11. h4 {[%clk 0:02:40]}  Nc6 {[%clk 0:02:42]} 12. h5 {[%clk 0:02:25]}  Be7 {[%clk 0:02:34]} 13. g6 {[%clk 0:02:13]}  hxg6 {[%clk 0:02:31]} 14. hxg6 {[%clk 0:02:14]}  Rxh1+ {[%clk 0:02:31]} 15. Bxh1 {[%clk 0:02:15]}  Nxd4 {[%clk 0:02:27]} 16. gxf7+ {[%clk 0:02:15]}  Kxf7 {[%clk 0:02:26]} 17. Bxd4 {[%clk 0:02:16]}  Rh8 {[%clk 0:02:09]} 18. Qf3+ {[%clk 0:02:15]}  Bf6 {[%clk 0:02:08]} 19. O-O-O {[%clk 0:02:14]}  Ne5 {[%clk 0:01:59]} 20. Qg3 {[%clk 0:01:45]}  Qc4 {[%clk 0:01:25]} 21. Kb1 {[%clk 0:01:28]}  Rxh1 {[%clk 0:01:08]} 22. Rxh1 {[%clk 0:01:19]}  Qxd4 {[%clk 0:01:07]} 23. Rd1 {[%clk 0:01:16]}  Qc5 {[%clk 0:01:02]} 24. f4 {[%clk 0:01:16]}  Nc4 {[%clk 0:01:01]} 25. e5 {[%clk 0:01:17]}  Be7 {[%clk 0:00:46]} 26. Rg1 {[%clk 0:01:17]}  Bf8 {[%clk 0:00:32]} 27. Qg6+ {[%clk 0:01:16]}  Ke7 {[%clk 0:00:32]} 28. Re1 {[%clk 0:01:04]}  dxe5 {[%clk 0:00:25]} 29. Qg5+ {[%clk 0:01:04]}  Ke8 {[%clk 0:00:08]} 30. Qh5+ {[%clk 0:00:52]}  Kd8 {[%clk 0:00:06]} 31. Rd1+ {[%clk 0:00:50]}  Kc7 {[%clk 0:00:05]} 32. Qe8 {[%clk 0:00:48]}  Qe7 {[%clk 0:00:05]} 33. Nxb5+ {[%clk 0:00:38]}  axb5 {[%clk 0:00:05]} 34. Qxb5 {[%clk 0:00:39]}  Nb6 {[%clk 0:00:03]} 35. fxe5 {[%clk 0:00:35]}  g5 {[%clk 0:00:03]} 36. Rd6 {[%clk 0:00:28]}  Nc8 {[%clk 0:00:03]} 37. Qc4+ {[%clk 0:00:23]}  Kb8 {[%clk 0:00:03]} 38. Rxe6 {[%clk 0:00:23]}  Qc5 {[%clk 0:00:03]} 39. Qg4 {[%clk 0:00:09]}  Bd5 {[%clk 0:00:03]} 40. Rf6 {[%clk 0:00:10]}  Be7 {[%clk 0:00:03]} 41. Rf1 {[%clk 0:00:05]}  Qe3 {[%clk 0:00:03]} 42. Rd1 {[%clk 0:00:04]}  Bf3 {[%clk 0:00:03]} 43. Qg3 {[%clk 0:00:01]}  g4 {[%clk 0:00:04]} 44. e6+ {[%clk 0:00:02]}  Ka8 {[%clk 0:00:04]} 45. Re1 {[%clk 0:00:02]}  Qb6 {[%clk 0:00:04]} 46. Rf1 {[%clk 0:00:02]}  Bxa3 {[%clk 0:00:04]} 47. b3 {[%clk 0:00:03]}  Qd4 {[%clk 0:00:04]} 48. c3 {[%clk 0:00:02]}  Qxc3 {[%clk 0:00:03]} 49. Qf2 {[%clk 0:00:02]}  Qxb3+ {[%clk 0:00:04]} 50. Ka1 {[%clk 0:00:03]}  Bb4 {[%clk 0:00:03]} 51. Qa2+ {[%clk 0:00:03]}  Qxa2+ {[%clk 0:00:03]} 52. Kxa2 {[%clk 0:00:04]}  Be7 {[%clk 0:00:04]} 53. Kb2 {[%clk 0:00:04]}  Kb7 {[%clk 0:00:04]} 54. Rc1 {[%clk 0:00:04]}  Bf6+ {[%clk 0:00:04]} 55. Kb3 {[%clk 0:00:05]}  g3 {[%clk 0:00:05]} 56. Rg1 {[%clk 0:00:04]}  g2 {[%clk 0:00:05]} 57. Kc2 {[%clk 0:00:05]}  Bd4 {[%clk 0:00:06]} 58. Rb1+ {[%clk 0:00:06]}  Kc7 {[%clk 0:00:06]} 59. Kd3 {[%clk 0:00:07]}  g1=Q {[%clk 0:00:06]} 60. Rxg1 {[%clk 0:00:07]}  Bxg1 {[%clk 0:00:07]} 61. e7 {[%clk 0:00:08]}  Nxe7 {[%clk 0:00:07]} 0-1


[Site "https://www.chess.com"]

[Event "Titled Tuesday Blitz April 11 Early 2023"]
[White "Timofeev, Artyom"]
[Black "Arpita, Mukherjee"]
[WhiteFideId "4140419"]
[BlackFideId "5056403"]
[WhiteElo "2586"]
[BlackElo "2129"]
[Result "1-0"]
[Round "08"]
[TimeControl "180+2"]
[Date "2023.04.11"]
[WhiteClock "0:00:08"]
[BlackClock "0:00:05"]

1. c4 {[%clk 0:03:00]}  Nf6 {[%clk 0:02:59]} 2. Nc3 {[%clk 0:03:00]}  g6 {[%clk 0:02:57]} 3. e4 {[%clk 0:02:58]}  d6 {[%clk 0:02:57]} 4. g3 {[%clk 0:02:58]}  Bg7 {[%clk 0:02:58]} 5. Bg2 {[%clk 0:02:57]}  O-O {[%clk 0:02:58]} 6. Nge2 {[%clk 0:02:57]}  c5 {[%clk 0:02:57]} 7. O-O {[%clk 0:02:57]}  Nc6 {[%clk 0:02:58]} 8. d3 {[%clk 0:02:57]}  a6 {[%clk 0:02:58]} 9. h3 {[%clk 0:02:56]}  Bd7 {[%clk 0:02:58]} 10. Be3 {[%clk 0:02:56]}  Rb8 {[%clk 0:02:59]} 11. a4 {[%clk 0:02:55]}  e5 {[%clk 0:02:49]} 12. f4 {[%clk 0:02:50]}  exf4 {[%clk 0:02:46]} 13. Nxf4 {[%clk 0:02:45]}  Re8 {[%clk 0:02:34]} 14. Kh2 {[%clk 0:02:40]}  Ne5 {[%clk 0:02:30]} 15. Kh1 {[%clk 0:02:16]}  b5 {[%clk 0:02:27]} 16. axb5 {[%clk 0:02:15]}  axb5 {[%clk 0:02:27]} 17. b3 {[%clk 0:02:06]}  bxc4 {[%clk 0:02:24]} 18. bxc4 {[%clk 0:02:06]}  Rb2 {[%clk 0:02:14]} 19. Rb1 {[%clk 0:01:59]}  Qb8 {[%clk 0:02:05]} 20. Nb5 {[%clk 0:01:44]}  Rxb1 {[%clk 0:01:48]} 21. Qxb1 {[%clk 0:01:44]}  h6 {[%clk 0:01:31]} 22. Qb3 {[%clk 0:01:23]}  g5 {[%clk 0:00:58]} 23. Ne2 {[%clk 0:01:23]}  d5 {[%clk 0:00:46]} 24. Bxc5 {[%clk 0:01:06]}  Nxd3 {[%clk 0:00:32]} 25. Qxd3 {[%clk 0:01:01]}  dxc4 {[%clk 0:00:31]} 26. Qf3 {[%clk 0:00:56]}  Bxb5 {[%clk 0:00:21]} 27. Bd4 {[%clk 0:00:50]}  Re6 {[%clk 0:00:19]} 28. Nc3 {[%clk 0:00:41]}  Bc6 {[%clk 0:00:18]} 29. Nd5 {[%clk 0:00:37]}  Bxd5 {[%clk 0:00:12]} 30. exd5 {[%clk 0:00:37]}  Ra6 {[%clk 0:00:12]} 31. Qe3 {[%clk 0:00:22]}  Qb3 {[%clk 0:00:12]} 32. Qf2 {[%clk 0:00:11]}  Qd3 {[%clk 0:00:11]} 33. Be5 {[%clk 0:00:08]}  c3 {[%clk 0:00:09]} 34. d6 {[%clk 0:00:08]}  c2 {[%clk 0:00:09]} 35. Bxf6 {[%clk 0:00:08]}  Bxf6 {[%clk 0:00:05]} 36. Qxf6 {[%clk 0:00:08]}  Qc4 {[%clk 0:00:04]} 37. d7 {[%clk 0:00:07]}  Rxf6 {[%clk 0:00:02]} 38. d8=Q+ {[%clk 0:00:07]}  Kh7 {[%clk 0:00:03]} 39. Qxf6 {[%clk 0:00:07]}  c1=Q {[%clk 0:00:04]} 40. Qf5+ {[%clk 0:00:06]}  Kh8 {[%clk 0:00:03]} 41. Rxc1 {[%clk 0:00:06]}  Qxc1+ {[%clk 0:00:03]} 42. Kh2 {[%clk 0:00:07]}  Qc7 {[%clk 0:00:04]} 43. Qf6+ {[%clk 0:00:07]}  Kg8 {[%clk 0:00:04]} 44. Qxh6 {[%clk 0:00:06]}  Qe5 {[%clk 0:00:04]} 45. Qh5 {[%clk 0:00:06]}  Kg7 {[%clk 0:00:04]} 46. Qg4 {[%clk 0:00:06]}  Qf6 {[%clk 0:00:03]} 47. h4 {[%clk 0:00:06]}  Kh6 {[%clk 0:00:02]} 48. Qxg5+ {[%clk 0:00:06]}  Qxg5 {[%clk 0:00:03]} 49. hxg5+ {[%clk 0:00:06]}  Kxg5 {[%clk 0:00:04]} 50. Bh3 {[%clk 0:00:06]}  f5 {[%clk 0:00:04]} 51. Kg2 {[%clk 0:00:06]}  f4 {[%clk 0:00:04]} 52. g4 {[%clk 0:00:07]}  Kh4 {[%clk 0:00:05]} 53. Kf3 {[%clk 0:00:07]}  Kxh3 {[%clk 0:00:06]} 54. Kxf4 {[%clk 0:00:08]}  Kh4 {[%clk 0:00:06]} 55. Kf5 {[%clk 0:00:08]}  Kg3 {[%clk 0:00:05]} 56. g5 {[%clk 0:00:08]} 1-0


[Site "https://www.chess.com"]

[Event "Titled Tuesday Blitz April 11 Early 2023"]
[White "Maxfan2008"]
[Black "Rakhmatullaev, Almas"]
[BlackFideId "14205793"]
[WhiteElo "2503"]
[BlackElo "2221"]
[Result "0-1"]
[Round "08"]
[TimeControl "180+2"]
[Date "2023.04.11"]
[WhiteClock "0:00:57"]
[BlackClock "0:01:07"]

1. d4 {[%clk 0:02:56]}  Nf6 {[%clk 0:03:00]} 2. c4 {[%clk 0:02:55]}  g6 {[%clk 0:03:00]} 3. Nf3 {[%clk 0:02:55]}  Bg7 {[%clk 0:03:01]} 4. g3 {[%clk 0:02:55]}  O-O {[%clk 0:03:01]} 5. Bg2 {[%clk 0:02:56]}  d6 {[%clk 0:03:02]} 6. O-O {[%clk 0:02:56]}  c6 {[%clk 0:03:03]} 7. Nc3 {[%clk 0:02:57]}  Bf5 {[%clk 0:03:03]} 8. Re1 {[%clk 0:02:51]}  Ne4 {[%clk 0:03:03]} 9. Qb3 {[%clk 0:02:47]}  Qc7 {[%clk 0:02:59]} 10. Nh4 {[%clk 0:02:42]}  Nxc3 {[%clk 0:02:57]} 11. bxc3 {[%clk 0:02:40]}  Be6 {[%clk 0:02:53]} 12. e4 {[%clk 0:02:37]}  b5 {[%clk 0:02:44]} 13. d5 {[%clk 0:02:30]}  Bd7 {[%clk 0:02:44]} 14. cxb5 {[%clk 0:02:28]}  cxb5 {[%clk 0:02:43]} 15. Bb2 {[%clk 0:02:21]}  Rc8 {[%clk 0:02:41]} 16. Nf3 {[%clk 0:02:08]}  Na6 {[%clk 0:02:38]} 17. Nd4 {[%clk 0:02:07]}  Nc5 {[%clk 0:02:37]} 18. Qc2 {[%clk 0:02:06]}  Na4 {[%clk 0:02:35]} 19. Nc6 {[%clk 0:02:00]}  Bxc6 {[%clk 0:02:12]} 20. dxc6 {[%clk 0:02:01]}  Rab8 {[%clk 0:02:13]} 21. e5 {[%clk 0:01:46]}  Bxe5 {[%clk 0:02:05]} 22. Rad1 {[%clk 0:01:44]}  Nxb2 {[%clk 0:01:50]} 23. Qxb2 {[%clk 0:01:43]}  b4 {[%clk 0:01:51]} 24. Rxe5 {[%clk 0:01:31]}  dxe5 {[%clk 0:01:51]} 25. Rd7 {[%clk 0:01:31]}  bxc3 {[%clk 0:01:41]} 26. Qc2 {[%clk 0:01:20]}  Qa5 {[%clk 0:01:30]} 27. Rxe7 {[%clk 0:01:17]}  Rb2 {[%clk 0:01:28]} 28. Qd3 {[%clk 0:00:59]}  c2 {[%clk 0:01:22]} 29. Bd5 {[%clk 0:01:00]}  c1=Q+ {[%clk 0:01:16]} 30. Kg2 {[%clk 0:01:01]}  Rxf2+ {[%clk 0:01:11]} 31. Kxf2 {[%clk 0:01:00]}  Qac5+ {[%clk 0:01:10]} 32. Kg2 {[%clk 0:00:57]}  Qxe7 {[%clk 0:01:07]} 0-1


[Site "https://www.chess.com"]

[Event "Titled Tuesday Blitz April 11 Early 2023"]
[White "Iliaguev, Nisim"]
[Black "Samadov, Read"]
[WhiteFideId "2817276"]
[BlackFideId "13417444"]
[WhiteElo "2241"]
[BlackElo "2355"]
[Result "1-0"]
[Round "08"]
[TimeControl "180+2"]
[Date "2023.04.11"]
[WhiteClock "0:00:21"]
[BlackClock "0:00:01"]

1. c4 {[%clk 0:03:00]}  Nf6 {[%clk 0:02:59]} 2. g3 {[%clk 0:03:01]}  e5 {[%clk 0:02:59]} 3. Bg2 {[%clk 0:03:02]}  c6 {[%clk 0:03:00]} 4. d3 {[%clk 0:03:02]}  d5 {[%clk 0:03:00]} 5. Nf3 {[%clk 0:03:03]}  Bd6 {[%clk 0:02:59]} 6. O-O {[%clk 0:03:02]}  O-O {[%clk 0:03:00]} 7. b3 {[%clk 0:03:01]}  d4 {[%clk 0:02:57]} 8. e3 {[%clk 0:03:00]}  dxe3 {[%clk 0:02:55]} 9. Bxe3 {[%clk 0:03:01]}  Nbd7 {[%clk 0:02:54]} 10. Nc3 {[%clk 0:03:00]}  Re8 {[%clk 0:02:52]} 11. d4 {[%clk 0:03:00]}  exd4 {[%clk 0:02:49]} 12. Bxd4 {[%clk 0:03:00]}  Nc5 {[%clk 0:02:47]} 13. Qd2 {[%clk 0:02:54]}  Bf5 {[%clk 0:02:43]} 14. Rad1 {[%clk 0:02:51]}  Nce4 {[%clk 0:02:24]} 15. Nxe4 {[%clk 0:02:51]}  Nxe4 {[%clk 0:02:24]} 16. Qb2 {[%clk 0:02:51]}  Qe7 {[%clk 0:02:10]} 17. Bxg7 {[%clk 0:02:42]}  f6 {[%clk 0:02:03]} 18. Nh4 {[%clk 0:02:41]}  Bg4 {[%clk 0:01:51]} 19. Bxe4 {[%clk 0:02:06]}  Be5 {[%clk 0:01:46]} 20. Qb1 {[%clk 0:01:53]}  Qxg7 {[%clk 0:01:42]} 21. Nf5 {[%clk 0:01:45]}  Bxf5 {[%clk 0:01:25]} 22. Bxf5 {[%clk 0:01:45]}  Rad8 {[%clk 0:01:25]} 23. Qc2 {[%clk 0:01:40]}  c5 {[%clk 0:01:16]} 24. Rd5 {[%clk 0:01:36]}  Bd4 {[%clk 0:01:15]} 25. Qd3 {[%clk 0:01:32]}  Qf7 {[%clk 0:01:07]} 26. Qf3 {[%clk 0:01:31]}  Kh8 {[%clk 0:01:00]} 27. Kg2 {[%clk 0:01:31]}  b6 {[%clk 0:00:58]} 28. h4 {[%clk 0:01:31]}  Rxd5 {[%clk 0:00:52]} 29. cxd5 {[%clk 0:01:31]}  Rd8 {[%clk 0:00:50]} 30. Be6 {[%clk 0:01:27]}  Qf8 {[%clk 0:00:50]} 31. Re1 {[%clk 0:01:24]}  b5 {[%clk 0:00:50]} 32. Re4 {[%clk 0:01:23]}  Be5 {[%clk 0:00:47]} 33. a4 {[%clk 0:01:20]}  a6 {[%clk 0:00:47]} 34. axb5 {[%clk 0:01:20]}  axb5 {[%clk 0:00:47]} 35. Rg4 {[%clk 0:01:10]}  Qd6 {[%clk 0:00:45]} 36. Qf5 {[%clk 0:01:08]}  c4 {[%clk 0:00:41]} 37. bxc4 {[%clk 0:01:09]}  b4 {[%clk 0:00:42]} 38. h5 {[%clk 0:01:03]}  Qf8 {[%clk 0:00:29]} 39. c5 {[%clk 0:01:01]}  b3 {[%clk 0:00:26]} 40. Rb4 {[%clk 0:00:56]}  b2 {[%clk 0:00:24]} 41. Rb7 {[%clk 0:00:55]}  Qh6 {[%clk 0:00:24]} 42. d6 {[%clk 0:00:50]}  Rf8 {[%clk 0:00:18]} 43. d7 {[%clk 0:00:46]}  Rd8 {[%clk 0:00:16]} 44. c6 {[%clk 0:00:47]}  Qc1 {[%clk 0:00:11]} 45. c7 {[%clk 0:00:37]}  Qc6+ {[%clk 0:00:11]} 46. Qf3 {[%clk 0:00:36]}  Qxf3+ {[%clk 0:00:10]} 47. Kxf3 {[%clk 0:00:37]}  Bxc7 {[%clk 0:00:11]} 48. Rxb2 {[%clk 0:00:35]}  Kg7 {[%clk 0:00:11]} 49. Ke4 {[%clk 0:00:30]}  Kf8 {[%clk 0:00:11]} 50. Bf5 {[%clk 0:00:27]}  h6 {[%clk 0:00:11]} 51. Rc2 {[%clk 0:00:27]}  Ba5 {[%clk 0:00:10]} 52. Rc6 {[%clk 0:00:26]}  Kf7 {[%clk 0:00:09]} 53. f4 {[%clk 0:00:23]}  Ke7 {[%clk 0:00:08]} 54. Re6+ {[%clk 0:00:23]}  Kf7 {[%clk 0:00:06]} 55. Ra6 {[%clk 0:00:23]}  Bc7 {[%clk 0:00:03]} 56. Kd5 {[%clk 0:00:22]}  Ke7 {[%clk 0:00:04]} 57. Re6+ {[%clk 0:00:22]}  Kf7 {[%clk 0:00:03]} 58. Kc6 {[%clk 0:00:22]}  Ba5 {[%clk 0:00:03]} 59. Re3 {[%clk 0:00:22]}  Rb8 {[%clk 0:00:02]} 60. Bg6+ {[%clk 0:00:21]}  Kg7 {[%clk 0:00:02]} 61. Re8 {[%clk 0:00:22]}  Rd8 {[%clk 0:00:02]} 62. Kd6 {[%clk 0:00:21]}  Bb6 {[%clk 0:00:01]} 63. Ke7 {[%clk 0:00:21]} 1-0


[Site "https://www.chess.com"]

[Event "Titled Tuesday Blitz April 11 Early 2023"]
[White "Rendle, Thomas E"]
[Black "Keymer, Vincent"]
[WhiteFideId "408760"]
[BlackFideId "12940690"]
[WhiteElo "2428"]
[BlackElo "2651"]
[Result "1-0"]
[Round "08"]
[TimeControl "180+2"]
[Date "2023.04.11"]
[WhiteClock "0:00:22"]
[BlackClock "0:00:03"]

1. e4 {[%clk 0:02:55]}  c6 {[%clk 0:03:00]} 2. d4 {[%clk 0:02:52]}  d5 {[%clk 0:03:00]} 3. exd5 {[%clk 0:02:53]}  cxd5 {[%clk 0:03:01]} 4. Nf3 {[%clk 0:02:54]}  Nc6 {[%clk 0:03:01]} 5. Ne5 {[%clk 0:02:54]}  a6 {[%clk 0:02:56]} 6. c3 {[%clk 0:02:53]}  Bf5 {[%clk 0:02:53]} 7. Bf4 {[%clk 0:02:46]}  e6 {[%clk 0:02:52]} 8. Nd2 {[%clk 0:02:46]}  Bd6 {[%clk 0:02:51]} 9. Qf3 {[%clk 0:02:35]}  Nf6 {[%clk 0:02:38]} 10. h3 {[%clk 0:02:26]}  Qc7 {[%clk 0:02:36]} 11. g4 {[%clk 0:02:16]}  Nxe5 {[%clk 0:02:31]} 12. Bxe5 {[%clk 0:02:10]}  Be4 {[%clk 0:02:20]} 13. Nxe4 {[%clk 0:02:07]}  dxe4 {[%clk 0:02:20]} 14. Bxd6 {[%clk 0:02:03]}  Qxd6 {[%clk 0:02:21]} 15. Qe3 {[%clk 0:02:03]}  Qb6 {[%clk 0:01:50]} 16. O-O-O {[%clk 0:01:58]}  Rc8 {[%clk 0:01:41]} 17. g5 {[%clk 0:01:31]}  Nd5 {[%clk 0:01:36]} 18. Qxe4 {[%clk 0:01:32]}  Qa5 {[%clk 0:01:37]} 19. Bd3 {[%clk 0:01:25]}  Qxa2 {[%clk 0:01:26]} 20. Bb1 {[%clk 0:01:25]}  Qa5 {[%clk 0:00:56]} 21. h4 {[%clk 0:01:18]}  Kd7 {[%clk 0:00:49]} 22. Rh3 {[%clk 0:01:17]}  g6 {[%clk 0:00:35]} 23. Rf3 {[%clk 0:01:11]}  Rhf8 {[%clk 0:00:35]} 24. Qe5 {[%clk 0:01:04]}  Qc7 {[%clk 0:00:27]} 25. Qg7 {[%clk 0:01:01]}  Kc6 {[%clk 0:00:24]} 26. Qxh7 {[%clk 0:00:52]}  Kb6 {[%clk 0:00:20]} 27. Qg7 {[%clk 0:00:52]}  Ka7 {[%clk 0:00:20]} 28. Qe5 {[%clk 0:00:53]}  Qb6 {[%clk 0:00:19]} 29. Ba2 {[%clk 0:00:48]}  Nb4 {[%clk 0:00:17]} 30. Bb3 {[%clk 0:00:46]}  Rc7 {[%clk 0:00:16]} 31. Kb1 {[%clk 0:00:45]}  Nc6 {[%clk 0:00:16]} 32. Qd6 {[%clk 0:00:41]}  Rd8 {[%clk 0:00:15]} 33. Qc5 {[%clk 0:00:38]}  Qxc5 {[%clk 0:00:08]} 34. dxc5 {[%clk 0:00:39]}  Rxd1+ {[%clk 0:00:09]} 35. Bxd1 {[%clk 0:00:40]}  Ne5 {[%clk 0:00:10]} 36. Rf6 {[%clk 0:00:39]}  Re7 {[%clk 0:00:08]} 37. b4 {[%clk 0:00:36]}  a5 {[%clk 0:00:08]} 38. h5 {[%clk 0:00:34]}  gxh5 {[%clk 0:00:07]} 39. Bxh5 {[%clk 0:00:33]}  axb4 {[%clk 0:00:06]} 40. cxb4 {[%clk 0:00:34]}  Kb8 {[%clk 0:00:05]} 41. Kc2 {[%clk 0:00:34]}  Kc7 {[%clk 0:00:04]} 42. f4 {[%clk 0:00:34]}  Nc6 {[%clk 0:00:05]} 43. Rxf7 {[%clk 0:00:32]}  Nxb4+ {[%clk 0:00:05]} 44. Kb3 {[%clk 0:00:29]}  Nd5 {[%clk 0:00:05]} 45. g6 {[%clk 0:00:24]}  Kd8 {[%clk 0:00:02]} 46. g7 {[%clk 0:00:22]}  Re8 {[%clk 0:00:03]} 47. Rf8 {[%clk 0:00:22]} 1-0


[Site "https://www.chess.com"]